bitfinex-derivatives/quotes_BTCF0:USTF0_20250313
["timestamp","ask_amount","ask_price","bid_price","bid_amount"]
[1741863369595,0.0421,83294.0,83293.0,0.27674747]
[1741863370098,0.1621662,83294.0,83293.0,0.27674747]
[1741863370300,0.17439206,83294.0,83293.0,0.27674747]
[1741863371688,0.17439206,83294.0,83293.0,0.15667977]
[1741863372090,0.17439206,83294.0,83293.0,0.1447333]
[1741863372604,0.17439206,83294.0,83293.0,0.0847]
[1741863372996,0.17439206,83294.0,83293.0,0.0412]
[1741863373190,0.1200691,83292.0,83291.0,0.00018007]
[1741863374092,0.1200864,83280.0,83279.0,0.2169596]
[1741863374293,0.2683664,83280.0,83279.0,0.2169596]
[1741863374701,0.2683664,83280.0,83279.0,0.21515859]
[1741863375900,0.2683664,83280.0,83279.0,0.33524639]
[1741863376410,0.2683664,83280.0,83279.0,0.1200878]
[1741863376801,0.2683664,83280.0,83276.0,0.0817]
[1741863376802,0.14828,83280.0,83276.0,0.0817]
[1741863377001,0.1200907,83277.0,83276.0,0.2017917]
[1741863378303,0.1200907,83277.0,83276.0,0.0817]
[1741863378608,0.1200979,83272.0,83269.0,0.1201021]
[1741863378797,0.1200979,83272.0,83269.0,0.1624021]
[1741863379202,0.1200979,83272.0,83269.0,0.0423]
[1741863379401,0.1596979,83272.0,83269.0,0.0423]
[1741863379602,0.1596979,83272.0,83263.0,0.0423]
[1741863379805,0.1201095,83264.0,83263.0,0.1624109]
[1741863380309,0.1801894,83254.0,83253.0,0.1201247]
[1741863380507,0.1201216,83260.0,83259.0,0.0600569]
[1741863380805,0.07196755,83260.0,83259.0,0.0600569]
[1741863381801,0.11246755,83260.0,83259.0,0.0600569]
[1741863382108,0.11246755,83260.0,83259.0,0.1469569]
[1741863382314,0.26070755,83260.0,83259.0,0.1469569]
[1741863386820,0.1201268,83252.0,83251.0,0.00018007]
[1741863387006,0.1201268,83252.0,83251.0,0.04228007]
[1741863387407,0.1201268,83252.0,83251.0,0.08478007]
[1741863388018,0.1201268,83252.0,83251.0,0.08678007]
[1741863388213,0.1627268,83252.0,83251.0,0.08678007]
[1741863388518,0.1627268,83252.0,83251.0,0.20890827]
[1741863388818,0.1201268,83252.0,83251.0,0.20890827]
[1741863392021,0.1201268,83252.0,83251.0,0.08878007]
[1741863392921,0.1201268,83252.0,83251.0,0.20890827]
[1741863393923,0.2683668,83252.0,83251.0,0.20890827]
[1741863394725,0.2683668,83252.0,83251.0,0.08878007]
[1741863394927,0.2683668,83252.0,83251.0,0.20890827]
[1741863395317,0.2683668,83252.0,83251.0,0.08878007]
[1741863395924,0.2683668,83252.0,83251.0,0.20890827]
[1741863396610,0.2683668,83252.0,83251.0,0.08878007]
[1741863397021,0.3096668,83252.0,83251.0,0.08878007]
[1741863397323,0.3096668,83252.0,83251.0,0.04628007]
[1741863397533,0.3524668,83252.0,83251.0,0.04628007]
[1741863398036,0.23234,83252.0,83243.0,0.0414]
[1741863398230,0.1201383,83244.0,83243.0,0.0414]
[1741863398828,0.1201412,83242.0,83241.0,0.00011059]
[1741863399033,0.1201557,83232.0,83231.0,0.0417]
[1741863399341,0.1201672,83224.0,83223.0,0.21533877]
[1741863399632,0.1201672,83224.0,83223.0,0.25703877]
[1741863399933,0.1201672,83224.0,83223.0,0.37720747]
[1741863400338,0.1161672,83224.0,83223.0,0.37720747]
[1741863400741,0.1161672,83224.0,83223.0,0.41880747]
[1741863400929,0.01200058,83224.0,83223.0,0.41880747]
[1741863401129,0.1602648,83226.0,83225.0,0.1201658]
[1741863401331,0.0371,83226.0,83225.0,0.1201658]
[1741863401530,0.1482,83252.0,83232.0,0.0600772]
[1741863401730,0.2339,83252.0,83245.0,0.0600683]
[1741863401931,0.120134,83247.0,83246.0,0.0826]
[1741863402436,0.162434,83247.0,83246.0,0.2027355]
[1741863403539,0.1745313,83247.0,83246.0,0.0826]
[1741863403941,0.1745313,83247.0,83246.0,0.04]
[1741863404330,0.0583973,83247.0,83239.0,0.0426]
[1741863404535,0.1201441,83240.0,83239.0,0.0426]
[1741863404732,0.0414,83246.0,83239.0,0.1026721]
[1741863404937,0.0414,83246.0,83245.0,0.1201369]
[1741863405138,0.008,83247.0,83246.0,0.1201355]
[1741863405340,0.008,83247.0,83246.0,0.1632355]
[1741863405541,0.006,83247.0,83246.0,0.2064355]
[1741863406043,0.006,83247.0,83246.0,0.23880774]
[1741863406445,0.004,83247.0,83246.0,0.25232938]
[1741863406940,0.004,83247.0,83246.0,0.23240792]
[1741863407239,0.1482,83251.0,83246.0,0.11227242]
[1741863407546,0.2683282,83251.0,83250.0,0.1201297]
[1741863407839,0.1482,83251.0,83250.0,0.13258048]
[1741863408341,0.2683282,83251.0,83250.0,0.14610212]
[1741863408547,0.2683282,83251.0,83250.0,0.18630212]
[1741863408947,0.2683282,83251.0,83250.0,0.17278048]
[1741863409149,0.2683282,83251.0,83250.0,0.17378048]
[1741863409838,0.2683282,83251.0,83250.0,0.05365078]
[1741863410041,0.1482,83251.0,83250.0,0.1613297]
[1741863410236,0.1482,83251.0,83250.0,0.2048297]
[1741863410449,0.2683282,83251.0,83250.0,0.2048297]
[1741863410649,0.2693282,83251.0,83250.0,0.2048297]
[1741863410840,0.1492,83251.0,83250.0,0.2048297]
[1741863411041,0.2693282,83251.0,83250.0,0.2048297]
[1741863411240,0.1502,83251.0,83250.0,0.2038297]
[1741863411447,0.1492,83251.0,83250.0,0.2038297]
[1741863411943,0.2693282,83251.0,83250.0,0.21595931]
[1741863412739,0.2693282,83251.0,83250.0,0.21596018]
[1741863414049,0.2703282,83251.0,83250.0,0.0837]
[1741863414242,0.1802153,83242.0,83241.0,0.0600693]
[1741863414448,0.0600712,83242.0,83241.0,0.1802032]
[1741863414841,0.0600712,83242.0,83241.0,0.2629032]
[1741863415041,0.0600712,83242.0,83241.0,0.0827]
[1741863415241,0.1399712,83242.0,83241.0,0.0827]
[1741863415447,0.1399712,83242.0,83241.0,0.0403]
[1741863415749,0.1399712,83242.0,83241.0,0.0413]
[1741863416341,0.1419712,83242.0,83241.0,0.0403]
[1741863416835,0.1201427,83241.0,83240.0,0.21515859]
[1741863417139,0.1201427,83241.0,83240.0,0.33530269]
[1741863417340,0.2040427,83241.0,83240.0,0.33530269]
[1741863417536,0.003,83242.0,83241.0,0.1201427]
[1741863417749,0.003,83242.0,83241.0,0.4634427]
[1741863417951,0.0419,83251.0,83250.0,0.1201297]
[1741863418144,0.0419,83251.0,83250.0,0.1531342]
[1741863418343,0.1620282,83251.0,83250.0,0.16596223]
[1741863418844,0.1620282,83251.0,83250.0,0.24926223]
[1741863419046,0.1620282,83251.0,83250.0,0.24926227]
[1741863419445,0.1620282,83251.0,83250.0,0.2364342]
[1741863419647,0.1620282,83251.0,83250.0,0.13006134]
[1741863420149,0.1620282,83251.0,83250.0,0.10975079]
[1741863420753,0.1630282,83251.0,83250.0,0.10975079]
[1741863420951,0.2063282,83251.0,83250.0,0.02645079]
[1741863421149,0.2479282,83251.0,83250.0,0.02645079]
[1741863421450,0.2499282,83251.0,83250.0,0.01375684]
[1741863421652,0.1201383,83244.0,83243.0,0.0835]
[1741863421849,0.1201383,83244.0,83243.0,0.09591393]
[1741863422439,0.2052383,83244.0,83243.0,0.21605373]
[1741863423443,0.2072383,83244.0,83243.0,0.21605373]
[1741863423947,0.2092383,83244.0,83243.0,0.21605373]
[1741863424146,0.2092383,83244.0,83243.0,0.22954539]
[1741863425250,0.2072383,83244.0,83243.0,0.21603601]
[1741863425455,0.2072383,83244.0,83243.0,0.09589621]
[1741863425753,0.2092383,83244.0,83243.0,0.0403]
[1741863425952,0.2072383,83244.0,83243.0,0.0403]
[1741863426155,0.2092383,83244.0,83243.0,0.0403]
[1741863426956,0.1201441,83240.0,83239.0,0.0421]
[1741863427141,0.1201441,83240.0,83239.0,0.05424351]
[1741863428055,0.2733041,83240.0,83239.0,0.05424351]
[1741863428246,0.3154041,83240.0,83239.0,0.21608911]
[1741863429057,0.3154041,83240.0,83239.0,0.22947003]
[1741863429351,0.3154041,83240.0,83239.0,0.06722443]
[1741863429659,0.3557041,83240.0,83239.0,0.05384351]
[1741863429957,0.3557041,83240.0,83239.0,0.09694351]
[1741863430448,0.3557041,83240.0,83239.0,0.21708911]
[1741863430654,0.3557041,83240.0,83239.0,0.09694351]
[1741863430853,0.3567041,83240.0,83239.0,0.09694351]
[1741863431255,0.0600776,83233.0,83226.0,0.21515859]
[1741863431459,0.1201614,83228.0,83227.0,0.09543512]
[1741863431752,0.1201614,83228.0,83227.0,0.09543841]
[1741863431957,0.1201629,83227.0,83226.0,0.21515859]
[1741863432151,0.21900594,83227.0,83226.0,0.21515859]
[1741863432750,0.21900594,83227.0,83226.0,0.21715859]
[1741863433053,0.21900594,83227.0,83226.0,0.002]
[1741863433857,0.21900594,83227.0,83226.0,0.005]
[1741863434053,0.21900594,83227.0,83226.0,0.004]
[1741863434552,0.21900594,83227.0,83226.0,0.003]
[1741863435158,0.1201715,83221.0,83220.0,0.21515859]
[1741863436362,0.1201744,83219.0,83218.0,0.00018018]
[1741863436952,0.2009744,83219.0,83218.0,0.00018018]
[1741863437457,0.1979744,83219.0,83218.0,0.00418018]
[1741863438664,0.1979744,83219.0,83218.0,0.00818018]
[1741863438858,0.0838,83219.0,83218.0,0.12835608]
[1741863439065,0.2039744,83219.0,83218.0,0.12835608]
[1741863439654,0.2039744,83219.0,83218.0,0.00818018]
[1741863441260,0.09284091,83219.0,83208.0,0.0434]
[1741863441464,0.0600906,83215.0,83203.0,0.0437]
[1741863441667,0.0600906,83215.0,83200.0,0.1]
[1741863441668,0.1202004,83201.0,83200.0,0.08956999]
[1741863441865,0.1202207,83187.0,83186.0,0.0437]
[1741863442070,0.120225,83184.0,83183.0,0.21515859]
[1741863442363,0.1202308,83180.0,83179.0,0.28687812]
[1741863442561,0.1202308,83180.0,83179.0,0.22327853]
[1741863443162,0.1192308,83180.0,83179.0,0.22327853]
[1741863443366,0.1622308,83180.0,83179.0,0.14829002]
[1741863443561,0.1612308,83180.0,83179.0,0.14829002]
[1741863443763,0.193,83180.0,83174.0,0.20927912]
[1741863444070,0.120238,83175.0,83174.0,0.20927912]
[1741863444257,0.120238,83175.0,83169.0,0.00064]
[1741863444258,0.1202452,83170.0,83169.0,0.00064]
[1741863444459,0.1202756,83149.0,83148.0,0.61072948]
[1741863444654,0.0601369,83151.0,83148.0,0.61072948]
[1741863444655,0.15032,83151.0,83148.0,0.61072948]
[1741863444858,0.2710216,83159.0,83158.0,0.1202626]
[1741863445266,0.15076,83159.0,83158.0,0.1202626]
[1741863445769,0.15076,83159.0,83158.0,0.1629626]
[1741863446276,0.15108,83166.0,83165.0,0.1202525]
[1741863446570,0.00900477,83167.0,83166.0,0.120251]
[1741863446861,0.00900477,83167.0,83166.0,0.206051]
[1741863446862,0.1204299,83167.0,83166.0,0.206051]
[1741863447055,0.0001803,83167.0,83166.0,0.206051]
[1741863447259,0.1204299,83167.0,83166.0,0.206051]
[1741863447457,0.1204299,83167.0,83166.0,0.0858]
[1741863448057,0.1204299,83167.0,83166.0,0.206051]
[1741863448264,0.1204299,83167.0,83166.0,0.0858]
[1741863450055,0.2714299,83167.0,83166.0,0.206051]
[1741863450262,0.1511803,83167.0,83166.0,0.206051]
[1741863451171,0.0001803,83167.0,83166.0,0.206051]
[1741863451869,0.0601172,83178.0,83166.0,0.3358]
[1741863452066,0.1202357,83177.0,83176.0,0.1202351]
[1741863452769,0.0601172,83178.0,83174.0,0.060119]
[1741863452966,0.1202525,83166.0,83165.0,0.1803665]
[1741863454466,0.0601254,83167.0,83150.0,0.00829895]
[1741863454672,0.2405261,83161.0,83160.0,0.0601272]
[1741863455261,0.0601292,83161.0,83160.0,0.0601272]
[1741863455768,0.180386,83163.0,83162.0,0.1202568]
[1741863455966,0.0601278,83163.0,83162.0,0.1202568]
[1741863456166,0.1202522,83166.0,83165.0,0.120251]
[1741863456566,0.1202522,83166.0,83165.0,0.163851]
[1741863457273,0.1202522,83166.0,83165.0,0.0436]
[1741863457569,0.1601522,83166.0,83165.0,0.0436]
[1741863457774,0.1601522,83166.0,83165.0,0.1638525]
[1741863458272,0.1202522,83166.0,83165.0,0.1638525]
[1741863458474,0.2700496,83167.0,83166.0,0.120251]
[1741863458677,0.2700496,83167.0,83166.0,0.205751]
[1741863460374,0.1498,83167.0,83166.0,0.205751]
[1741863461286,0.1498,83167.0,83166.0,0.21761533]
[1741863461669,0.1498,83167.0,83166.0,0.46761533]
[1741863461871,0.0001803,83169.0,83166.0,0.46761533]
[1741863462179,0.0001803,83169.0,83168.0,0.1202481]
[1741863462377,0.0001803,83169.0,83168.0,0.4422481]
[1741863463285,0.0001803,83169.0,83168.0,0.4122481]
[1741863463477,0.0001803,83169.0,83168.0,0.1622481]
[1741863463878,0.120427,83169.0,83168.0,0.1622481]
[1741863466374,0.0001803,83169.0,83168.0,0.1622481]
[1741863466775,0.120427,83169.0,83168.0,0.1622481]
[1741863467283,0.0001803,83169.0,83168.0,0.1622481]
[1741863469387,0.120427,83169.0,83168.0,0.1622481]
[1741863471181,0.200727,83169.0,83168.0,0.1622481]
[1741863472582,0.0804803,83169.0,83168.0,0.1622481]
[1741863472784,0.0001803,83169.0,83168.0,0.4322481]
[1741863473087,0.0001803,83169.0,83168.0,0.1622481]
[1741863473279,0.0001803,83169.0,83168.0,0.2039481]
[1741863473479,0.0001803,83169.0,83168.0,0.4839481]
[1741863473680,0.0001803,83169.0,83168.0,0.4739481]
[1741863474779,0.0001803,83169.0,83168.0,0.2039481]
[1741863475181,0.0001803,83169.0,83168.0,0.1622481]
[1741863475378,0.0001803,83169.0,83168.0,0.1202481]
[1741863475379,0.120427,83169.0,83168.0,0.1202481]
[1741863476085,0.120427,83169.0,83168.0,0.2043481]
[1741863476291,0.161227,83169.0,83168.0,0.2043481]
[1741863477086,0.0409803,83169.0,83161.0,0.0601287]
[1741863477288,0.1202539,83165.0,83164.0,0.0601269]
[1741863477489,0.1202539,83165.0,83164.0,0.1439269]
[1741863477690,0.2044539,83165.0,83164.0,0.1439269]
[1741863478493,0.2044539,83165.0,83164.0,0.1449269]
[1741863479291,0.2044539,83165.0,83164.0,0.15690446]
[1741863480285,0.2044539,83165.0,83164.0,0.1449269]
[1741863480680,0.2044539,83165.0,83164.0,0.0848]
[1741863481083,0.3528539,83165.0,83164.0,0.001]
[1741863481280,0.3528539,83165.0,83164.0,0.1212539]
[1741863481892,0.3528539,83165.0,83164.0,0.001]
[1741863482490,0.3528539,83165.0,83147.0,0.120278]
[1741863482491,0.1202756,83149.0,83148.0,0.48032179]
[1741863482681,0.1202756,83149.0,83148.0,0.36004519]
[1741863483294,0.2009756,83149.0,83148.0,0.36004519]
[1741863484097,0.2009756,83149.0,83148.0,0.48032219]
[1741863484693,0.2009756,83149.0,83148.0,0.48232219]
[1741863484885,0.21326888,83149.0,83148.0,0.36204519]
[1741863485894,0.25416888,83149.0,83148.0,0.002]
[1741863488592,0.1202843,83144.0,83143.0,0.1202839]
[1741863488788,0.1216,83149.0,83148.0,0.120277]
[1741863488995,0.27,83149.0,83148.0,0.120277]
[1741863489295,0.1895,83149.0,83148.0,0.120277]
[1741863489490,0.1895,83149.0,83148.0,0.13230342]
[1741863489691,0.0411,83149.0,83148.0,0.13230342]
[1741863489887,0.1484,83151.0,83150.0,0.1202742]
[1741863490092,0.0001803,83152.0,83151.0,0.1202727]
[1741863490295,0.0001803,83152.0,83151.0,0.50819912]
[1741863490488,0.0001803,83152.0,83151.0,0.4961727]
[1741863491800,0.1204516,83152.0,83151.0,0.4961727]
[1741863492005,0.1626516,83152.0,83151.0,0.2461727]
[1741863492304,0.1626516,83152.0,83151.0,0.2038727]
[1741863493303,0.2040516,83152.0,83151.0,0.2038727]
[1741863493696,0.0423803,83152.0,83151.0,0.2038727]
[1741863494006,0.0001803,83152.0,83151.0,0.4638727]
[1741863494300,0.0829,83166.0,83151.0,0.3436]
[1741863494504,0.1484,83165.0,83161.0,0.0601287]
[1741863494691,0.1484,83165.0,83164.0,0.1202539]
[1741863495396,0.0415,83169.0,83168.0,0.1202481]
[1741863495591,0.1617493,83169.0,83168.0,0.1202481]
[1741863495807,0.2049493,83169.0,83168.0,0.1202481]
[1741863496190,0.0847,83169.0,83168.0,0.2040481]
[1741863496394,0.1484,83170.0,83168.0,0.0838]
[1741863496594,0.04388041,83173.0,83168.0,0.0838]
[1741863496796,0.00018041,83173.0,83172.0,0.1202423]
[1741863497301,0.12042131,83173.0,83172.0,0.1202423]
[1741863497700,0.20732131,83173.0,83172.0,0.1202423]
[1741863498495,0.20832131,83173.0,83172.0,0.1202423]
[1741863499108,0.21132131,83173.0,83172.0,0.1202423]
[1741863499298,0.04788041,83173.0,83172.0,0.1202423]
[1741863499804,0.16812131,83173.0,83172.0,0.1202423]
[1741863499996,0.16712131,83173.0,83172.0,0.1202423]
[1741863500197,0.17012131,83173.0,83172.0,0.1202423]
[1741863500903,0.16912131,83173.0,83172.0,0.1202423]
[1741863501401,0.16912131,83173.0,83168.0,0.0838]
[1741863501402,0.04788041,83173.0,83168.0,0.0838]
[1741863501608,0.1202467,83170.0,83169.0,0.1202458]
[1741863501905,0.1202467,83170.0,83169.0,0.2026458]
[1741863502098,0.2038467,83170.0,83169.0,0.2026458]
[1741863502293,0.0836,83170.0,83139.0,0.03784696]
[1741863502498,0.0601298,83161.0,83158.0,0.2200923]
[1741863502806,0.1202611,83159.0,83158.0,0.0397]
[1741863503108,0.1202611,83159.0,83158.0,0.1599626]
[1741863503411,0.0836,83159.0,83158.0,0.1599626]
[1741863503708,0.0401,83159.0,83158.0,0.1599626]
[1741863503892,0.0435,83163.0,83158.0,0.0397]
[1741863504098,0.1637554,83163.0,83162.0,0.1202568]
[1741863505800,0.1667554,83163.0,83162.0,0.1202568]
[1741863506406,0.1677554,83163.0,83162.0,0.1202568]
[1741863507306,0.1667554,83163.0,83162.0,0.1202568]
[1741863507504,0.1697554,83163.0,83162.0,0.1202568]
[1741863508103,0.1637554,83163.0,83162.0,0.1202568]
[1741863508312,0.1697554,83163.0,83162.0,0.1202568]
[1741863508913,0.2108554,83163.0,83162.0,0.1642568]
[1741863511917,0.2108554,83163.0,83162.0,0.1202568]
[1741863512211,0.0906,83163.0,83157.0,0.0434]
[1741863512416,0.1202626,83158.0,83157.0,0.163664]
[1741863512809,0.1202626,83158.0,83156.0,0.00018041]
[1741863513007,0.1202626,83158.0,83156.0,0.12044591]
[1741863513008,0.248264,83157.0,83156.0,0.12044591]
[1741863513821,0.248264,83157.0,83156.0,0.16384591]
[1741863514212,0.128,83157.0,83156.0,0.16384591]
[1741863514516,0.05566974,83157.0,83156.0,0.16384591]
[1741863514709,0.05666974,83157.0,83156.0,0.16384591]
[1741863514907,0.17693374,83157.0,83156.0,0.16384591]
[1741863515110,0.001,83157.0,83156.0,0.16384591]
[1741863515502,0.001,83157.0,83156.0,0.27384591]
[1741863515912,0.001,83157.0,83156.0,0.28614213]
[1741863516311,0.003,83157.0,83156.0,0.28614213]
[1741863516713,0.14313791,83163.0,83156.0,0.16587663]
[1741863517023,0.10809261,83163.0,83162.0,0.1202568]
[1741863517321,0.10809261,83163.0,83162.0,0.3802568]
[1741863517915,0.10909261,83163.0,83162.0,0.3802568]
[1741863518115,0.001,83163.0,83162.0,0.3802568]
[1741863518716,0.00018041,83173.0,83172.0,0.1202423]
[1741863518924,0.00018041,83173.0,83172.0,0.3802423]
[1741863520021,0.2142741,83181.0,83172.0,0.3007]
[1741863520212,0.2142741,83181.0,83180.0,0.1202308]
[1741863520417,0.2142741,83181.0,83180.0,0.3602308]
[1741863520824,0.2142741,83181.0,83180.0,0.3720328]
[1741863521020,0.2142741,83181.0,83180.0,0.4556328]
[1741863521334,0.3345034,83181.0,83180.0,0.2038308]
[1741863521523,0.1202293,83181.0,83180.0,0.2038308]
[1741863521917,0.1242293,83181.0,83180.0,0.2038308]
[1741863522319,0.1272293,83181.0,83180.0,0.2038308]
[1741863522525,0.007,83181.0,83180.0,0.2038308]
[1741863523418,0.1272293,83181.0,83180.0,0.2038308]
[1741863523620,0.007,83181.0,83180.0,0.2038308]
[1741863524422,0.1272293,83181.0,83180.0,0.2038308]
[1741863524830,0.13926672,83181.0,83180.0,0.1202308]
[1741863525332,0.1202308,83180.0,83179.0,0.1631313]
[1741863525626,0.1202409,83173.0,83172.0,0.1803585]
[1741863525929,0.1202409,83173.0,83172.0,0.3434994]
[1741863526726,0.0431,83174.0,83173.0,0.1202409]
[1741863526924,0.0431,83174.0,83173.0,0.4295409]
[1741863527126,0.0431,83174.0,83173.0,0.1995409]
[1741863528428,0.0451,83174.0,83173.0,0.1995409]
[1741863528627,0.0451,83174.0,83173.0,0.4595409]
[1741863528927,0.1653394,83174.0,83173.0,0.1995409]
[1741863529319,0.1673394,83174.0,83173.0,0.4395409]
[1741863529723,0.120251,83166.0,83165.0,0.2404926]
[1741863530830,0.159951,83166.0,83165.0,0.2404926]
[1741863531030,0.159951,83166.0,83165.0,0.2424926]
[1741863531529,0.0397,83166.0,83165.0,0.2424926]
[1741863532836,0.001,83166.0,83165.0,0.2414926]
[1741863533034,0.002,83166.0,83165.0,0.2404926]
[1741863533919,0.0373,83166.0,83165.0,0.2414926]
[1741863534118,0.0383,83166.0,83165.0,0.2414926]
[1741863534625,0.158551,83166.0,83165.0,0.2404926]
[1741863534829,0.197751,83166.0,83165.0,0.2404926]
[1741863535932,0.196751,83166.0,83165.0,0.2404926]
[1741863536533,0.198751,83166.0,83165.0,0.2404926]
[1741863537933,0.200751,83166.0,83165.0,0.2404926]
[1741863541035,0.0805,83166.0,83165.0,0.2404926]
[1741863541438,0.200751,83166.0,83165.0,0.2404926]
[1741863542940,0.200751,83166.0,83165.0,0.0601235]
[1741863543136,0.1803823,83164.0,83163.0,0.1202545]
[1741863544441,0.1813823,83164.0,83163.0,0.1202545]
[1741863544943,0.1823823,83164.0,83163.0,0.1573545]
[1741863545237,0.1823823,83164.0,83163.0,0.1963545]
[1741863545442,0.002,83164.0,83163.0,0.1963545]
[1741863546433,0.001,83164.0,83163.0,0.1963545]
[1741863546629,0.001,83164.0,83163.0,0.1973545]
[1741863547339,0.1567539,83164.0,83163.0,0.1973545]
[1741863547931,0.1577539,83164.0,83163.0,0.1963545]
[1741863548446,0.0375,83164.0,83163.0,0.1963545]
[1741863548936,0.001,83164.0,83163.0,0.1963545]
[1741863549337,0.14812,83174.0,83171.0,0.1202438]
[1741863549542,0.0376,83183.0,83182.0,0.1202279]
[1741863549742,0.05202001,83184.0,83183.0,0.1202264]
[1741863549938,0.160025,83184.0,83183.0,0.1949264]
[1741863550138,0.200125,83184.0,83183.0,0.1949264]
[1741863551041,0.205125,83184.0,83183.0,0.1949264]
[1741863552743,0.21748991,83184.0,83183.0,0.1949264]
[1741863553141,0.22248991,83184.0,83183.0,0.1949264]
[1741863557048,0.22248991,83184.0,83183.0,0.1572264]
[1741863557352,0.22248991,83184.0,83183.0,0.1956264]
[1741863562652,0.0498,83184.0,83183.0,0.1956264]
[1741863562854,0.01,83184.0,83183.0,0.4156264]
[1741863563162,0.01,83184.0,83183.0,0.4535264]
[1741863563850,0.01,83184.0,83183.0,0.46551773]
[1741863565558,0.01,83184.0,83183.0,0.4535264]
[1741863565761,0.01,83184.0,83183.0,0.46545685]
[1741863570258,0.00018041,83192.0,83191.0,0.1202149]
[1741863570563,0.12039381,83192.0,83191.0,0.13214535]
[1741863570759,0.19099381,83192.0,83191.0,0.20454535]
[1741863571364,0.19099381,83192.0,83191.0,0.20454115]
[1741863572457,0.07078041,83192.0,83191.0,0.20454115]
[1741863572666,0.08078041,83192.0,83191.0,0.20554115]
[1741863572857,0.20099381,83192.0,83191.0,0.20554115]
[1741863574358,0.04618041,83192.0,83191.0,0.20554115]
[1741863574863,0.16639381,83192.0,83191.0,0.1936149]
[1741863575057,0.20089381,83192.0,83191.0,0.1936149]
[1741863575868,0.20089381,83192.0,83191.0,0.1570149]
[1741863576367,0.20089381,83192.0,83191.0,0.1926149]
[1741863588972,1e-08,83192.0,83191.0,0.4326149]
[1741863589166,0.17920952,83198.0,83197.0,0.1202062]
[1741863589371,0.17920952,83198.0,83197.0,0.3868062]
[1741863589580,0.17920952,83198.0,83197.0,0.4618062]
[1741863592681,0.1202006,83201.0,83200.0,0.1202019]
[1741863592879,0.2165015,83201.0,83200.0,0.1202019]
[1741863593076,0.2538015,83201.0,83200.0,0.1952019]
[1741863594078,0.2548015,83201.0,83200.0,0.1952019]
[1741863595286,0.0745,83201.0,83200.0,0.4652019]
[1741863595473,0.0745,83201.0,83200.0,0.1952019]
[1741863596178,0.1947004,83201.0,83200.0,0.1952019]
[1741863596391,0.1937004,83201.0,83200.0,0.1952019]
[1741863597385,0.1947004,83201.0,83200.0,0.1952019]
[1741863598684,0.1947004,83201.0,83200.0,0.0385]
[1741863598986,0.1202033,83199.0,83198.0,0.0357]
[1741863599189,0.1202033,83199.0,83198.0,0.1559019]
[1741863599388,0.1942033,83199.0,83198.0,0.0357]
[1741863599989,0.1942033,83199.0,83198.0,0.1925048]
[1741863600288,0.120212,83193.0,83192.0,0.0001803]
[1741863600593,0.120212,83193.0,83192.0,0.1203937]
[1741863600982,0.074,83193.0,83192.0,0.1203937]
[1741863601187,0.0361,83193.0,83192.0,0.2308937]
[1741863601488,0.1938049,83198.0,83192.0,0.2308937]
[1741863601489,0.001,83199.0,83198.0,0.1202048]
[1741863601882,0.1212033,83199.0,83198.0,0.1946048]
[1741863602280,0.1222033,83199.0,83198.0,0.1946048]
[1741863603088,0.001,83199.0,83198.0,0.1946048]
[1741863603789,0.002,83199.0,83198.0,0.1946048]
[1741863604093,0.17920952,83203.0,83202.0,0.120199]
[1741863604290,0.17920952,83203.0,83202.0,0.38226206]
[1741863604481,0.17920952,83203.0,83202.0,0.39445401]
[1741863604683,0.17920952,83203.0,83202.0,0.38226206]
[1741863604884,0.17920952,83203.0,83202.0,0.45826206]
[1741863605591,0.18120952,83203.0,83202.0,0.45826206]
[1741863605989,0.1221975,83203.0,83202.0,0.20826206]
[1741863606985,0.1221975,83203.0,83202.0,0.17126206]
[1741863607381,0.002,83203.0,83202.0,0.17126206]
[1741863607691,0.1221975,83203.0,83202.0,0.17126206]
[1741863607991,0.1611975,83203.0,83202.0,0.01206306]
[1741863608995,0.1202062,83197.0,83193.0,0.0601059]
[1741863609187,0.1202062,83197.0,83195.0,0.33621406]
[1741863609382,0.060103,83198.0,83195.0,0.21600586]
[1741863609578,0.1202077,83196.0,83195.0,0.21600586]
[1741863610094,0.1202077,83196.0,83195.0,0.34840223]
[1741863610282,0.1202077,83196.0,83195.0,0.22819313]
[1741863610481,0.1202077,83196.0,83195.0,0.21600586]
[1741863611400,0.15,83196.0,83190.0,0.25331747]
[1741863611693,0.15,83196.0,83184.0,6e-08]
[1741863611694,0.1202235,83185.0,83184.0,6e-08]
[1741863611999,0.1202322,83179.0,83163.0,0.1202545]
[1741863612191,0.1202322,83179.0,83164.0,0.0359]
[1741863612392,0.0601187,83178.0,83177.0,0.1202305]
[1741863612986,0.0601187,83178.0,83177.0,0.13258567]
[1741863613395,0.07217476,83178.0,83177.0,0.21911288]
[1741863613587,0.01205606,83178.0,83177.0,0.20675771]
[1741863613789,0.1202337,83178.0,83177.0,0.23297227]
[1741863613985,0.1222337,83178.0,83177.0,0.23297227]
[1741863614183,0.1222337,83178.0,83177.0,0.19517227]
[1741863614388,0.13433439,83178.0,83177.0,0.03904177]
[1741863614595,0.13433439,83178.0,83177.0,0.026644]
[1741863615395,0.1202423,83172.0,83171.0,0.1202437]
[1741863615595,0.2677623,83172.0,83171.0,0.1202437]
[1741863616401,0.2677623,83172.0,83171.0,0.1330464]
[1741863616786,0.2697623,83172.0,83171.0,0.0128027]
[1741863616987,0.2697623,83172.0,83170.0,0.0001803]
[1741863617190,0.29952,83172.0,83153.0,0.0351]
[1741863617498,0.29952,83172.0,83141.0,0.0363]
[1741863617499,0.18042,83150.0,83149.0,0.060136]
[1741863617691,0.2677542,83150.0,83149.0,0.07242703]
[1741863618197,0.2677542,83150.0,83149.0,0.060136]
[1741863618498,0.14748,83150.0,83149.0,0.060136]
[1741863618689,0.2677542,83150.0,83149.0,0.060136]
[1741863618998,0.2677542,83150.0,83149.0,0.063136]
[1741863619200,0.2677542,83150.0,83149.0,0.07573232]
[1741863619402,0.2677542,83150.0,83149.0,0.063136]
[1741863620091,0.2677542,83150.0,83149.0,0.006]
[1741863621497,0.2677542,83150.0,83149.0,0.003]
[1741863621800,0.2677542,83150.0,83149.0,0.004]
[1741863623196,0.2677542,83150.0,83149.0,0.002]
[1741863625299,0.2677542,83150.0,83149.0,0.1222756]
[1741863625795,0.2677542,83150.0,83149.0,0.002]
[1741863626392,0.2677542,83150.0,83149.0,0.1222756]
[1741863627595,0.14748,83150.0,83149.0,0.1974756]
[1741863627791,0.0001803,83158.0,83157.0,0.120264]
[1741863628194,0.0001803,83158.0,83157.0,0.13366676]
[1741863628506,0.0001803,83158.0,83157.0,0.15532247]
[1741863629097,0.0001803,83158.0,83157.0,0.16822357]
[1741863629297,0.0001803,83158.0,83157.0,0.2581648]
[1741863629695,0.0011803,83158.0,83157.0,0.2581648]
[1741863630105,0.0011803,83158.0,83157.0,0.28172007]